Workbook

Sheet cie
A1: Lambda[nm] | B1: lambda [m] | C1: x | D1: y | E1: z | F1: B | G1: h | H1: c | I1: k | J1: T | L1: X * B | M1: Y*B | N1: Z*B | P1: X | Q1: Y | R1: Z | S1: x | T1: y | U1: z
A2: 380 | B2: =A2/(10^9) -> 3.8e-07 | C2: 0.0014 | D2: 0 | E2: 0.0065 | F2: =(2*$G$2*$H$2^2)/(B2^5)*1/(EXP($G$2*$H$2/(B2*$I$2*$J$2))-1) -> 1.308522774e+15 | G2: =6.62607015 * 10^-34 -> 6.62607015e-34 | H2: 300000000 | I2: =1.3806*10^-23 -> 1.3806e-23 | J2: 15000 | L2: =C2*F2 -> 1.831931884e+12 | M2: =D2*$F2 -> 0 | N2: =E2*$F2 -> 8.505398031e+12 | P2: =SUM(L2:L82) -> 1.030827993e+16 | Q2: =SUM(M2:M82) -> 1.045017508e+16 | R2: =SUM(N2:N82) -> 1.832459069e+16 | S2: =P2/($P$2+$Q$2+$R$2) -> 0.26375324 | T2: =Q2/($P$2+$Q$2+$R$2) -> 0.2673838462 | U2: =R2/($P$2+$Q$2+$R$2) -> 0.4688629138
A3: 385 | B3: =A3/(10^9) -> 3.85e-07 | C3: 0.0022 | D3: 0.0001 | E3: 0.0105 | F3: =(2*$G$2*$H$2^2)/(B3^5)*1/(EXP($G$2*$H$2/(B3*$I$2*$J$2))-1) -> 1.270292259e+15 | L3: =C3*F3 -> 2.79464297e+12 | M3: =D3*$F3 -> 1.270292259e+11 | N3: =E3*$F3 -> 1.333806872e+13
A4: 390 | B4: 3.9e-07 | C4: 0.0042 | D4: 0.0001 | E4: 0.0201 | F4: 1.233214987e+15 | L4: 5.179502945e+12 | M4: =D4*$F4 -> 1.233214987e+11 | N4: 2.478762124e+13
A5: 395 | B5: 3.95e-07 | C5: 0.0076 | D5: 0.0002 | E5: 0.0362 | F5: 1.197266321e+15 | L5: 9.099224037e+12 | M5: 2.394532641e+11 | N5: 4.334104081e+13
A6: 400 | B6: 4e-07 | C6: 0.0143 | D6: 0.0004 | E6: 0.0679 | F6: 1.162420586e+15 | L6: 1.662261437e+13 | M6: 4.649682342e+11 | N6: 7.892835776e+13
A7: 405 | B7: 4.05e-07 | C7: 0.0232 | D7: 0.0006 | E7: 0.1102 | F7: 1.128651323e+15 | L7: 2.61847107e+13 | M7: 6.77190794e+11 | N7: 1.243773758e+14
A8: 410 | B8: 4.1e-07 | C8: 0.0435 | D8: 0.0012 | E8: 0.2074 | F8: 1.095931515e+15 | L8: 4.767302089e+13 | M8: 1.315117818e+12 | N8: 2.272961961e+14
A9: 415 | B9: 4.15e-07 | C9: 0.0776 | D9: 0.0022 | E9: 0.3713 | F9: 1.064233773e+15 | L9: 8.258454079e+13 | M9: 2.341314301e+12 | N9: 395149999923303 | P9: Matica pre RGB | T9: Inverse Matrix "=MINVERSE(P10:R12)" | X9: xyz | Z9: rgb
A10: 420 | B10: 4.2e-07 | C10: 0.1344 | D10: 0.004 | E10: 0.6456 | F10: 1.033530512e+15 | L10: 1.389065008e+14 | M10: 4.134122048e+12 | N10: 6.672472985e+14 | P10: 0.67 | Q10: 0.21 | R10: 0.14 | T10: =MINVERSE(P10:R12) -> 1.730088496 | U10: -0.482300885 | V10: -0.2610619469 | W10: x | X10: =S2 -> 0.26375324 | Y10: = | Z10: =MMULT(T10:V12,X10:X12) -> 0.2049547154
A11: 425 | B11: 4.25e-07 | C11: 0.2148 | D11: 0.0073 | E11: 1.0391 | F11: 1.003794089e+15 | L11: 2.156149704e+14 | M11: 7.327696853e+12 | N11: 1.043042438e+15 | P11: 0.33 | Q11: 0.71 | R11: 0.08 | T11: -0.8135271808 | U11: 1.6517067 | V11: -0.02338811631 | X11: =T2 -> 0.2673838462 | Z11: 0.2161034402
A12: 430 | B12: 4.3e-07 | C12: 0.2839 | D12: 0.0116 | E12: 1.3856 | F12: 9.749969323e+14 | L12: 2.768016291e+14 | M12: 1.130996441e+13 | N12: 1.350955749e+15 | P12: =1-P10-P11 -> 0 | Q12: =1-Q10-Q11 -> 0.08 | R12: =1-R10-R11 -> 0.78 | T12: 0.08343868521 | U12: -0.1694058154 | V12: 1.284450063 | X12: =U2 -> 0.4688629138 | Z12: 0.5789418444
A13: 435 | B13: 4.35e-07 | C13: 0.3285 | D13: 0.0168 | E13: 1.623 | F13: 9.471116426e+14 | L13: 3.111261746e+14 | M13: 1.59114756e+13 | N13: 1537162195887788
A14: 440 | B14: 4.4e-07 | C14: 0.3483 | D14: 0.023 | E14: 1.7471 | F14: 9.201110874e+14 | L14: 3.204746917e+14 | M14: 2.116255501e+13 | N14: 1607526080793382
A15: 445 | B15: 4.45e-07 | C15: 0.3481 | D15: 0.0298 | E15: 1.7826 | F15: 8.939684755e+14 | L15: 3.111904263e+14 | M15: 2.664026057e+13 | N15: 1.593588204e+15 | P15: AK existuje hodnota v rgb < 0
A16: 450 | B16: 4.5e-07 | C16: 0.3362 | D16: 0.038 | E16: 1.7721 | F16: 8.68657421e+14 | L16: 292042624952275 | M16: 3.3008982e+13 | N16: 1539347815817747 | P16: Odstanenie zapornych cisel
A17: 455 | B17: 4.55e-07 | C17: 0.3187 | D17: 0.048 | E17: 1.7441 | F17: 844151996287297 | L17: 2.690312412e+14 | M17: 4.051929582e+13 | N17: 1.472285497e+15
A18: 460 | B18: 4.6e-07 | C18: 0.2908 | D18: 0.06 | E18: 1.6692 | F18: 8.204267753e+14 | L18: 2.385801062e+14 | M18: 4.922560652e+13 | N18: 1.369456373e+15 | P18: rgb | R18: - min rgb
A19: 465 | B19: 4.65e-07 | C19: 0.2511 | D19: 0.0739 | E19: 1.5281 | F19: 797456868561282 | L19: 2.002414197e+14 | M19: 5.893206259e+13 | N19: 1218593840848495 | P19: =MMULT(_xlfn.ANCHORARRAY(T10),X10:X12) -> 0.2049547154 | Q19: + | S19: = | T19: =P19+$R$20 -> 0
A20: 470 | B20: 4.7e-07 | C20: 0.1954 | D20: 0.091 | E20: 1.2876 | F20: 7.752179509e+14 | L20: 1.514775876e+14 | M20: 7.054483353e+13 | N20: 9.981706336e+14 | P20: 0.2161034402 | R20: =-MIN(P19:P21) -> -0.2049547154 | T20: =P20+$R$20 -> 0.01114872475
A21: 475 | B21: 4.75e-07 | C21: 0.1421 | D21: 0.1126 | E21: 1.0419 | F21: 7.536862824e+14 | L21: 1.070988207e+14 | M21: 8.48650754e+13 | N21: 7.852657377e+14 | P21: 0.5789418444 | T21: 0.3739871289
A22: 480 | B22: 4.8e-07 | C22: 0.0956 | D22: 0.139 | E22: 0.813 | F22: 7.328387242e+14 | L22: 7.005938204e+13 | M22: 1.018645827e+14 | N22: 5.957978828e+14
A23: 485 | B23: 4.85e-07 | C23: 0.058 | D23: 0.1693 | E23: 0.6162 | F23: 7.126527491e+14 | L23: 4.133385945e+13 | M23: 1.206521104e+14 | N23: 4.39136624e+14
A24: 490 | B24: 4.9e-07 | C24: 0.032 | D24: 0.208 | E24: 0.4652 | F24: 6.93106448e+14 | L24: 2.217940634e+13 | M24: 1.441661412e+14 | N24: 3.224331196e+14
A25: 495 | B25: 4.95e-07 | C25: 0.0147 | D25: 0.2586 | E25: 0.3533 | F25: 6.741785332e+14 | L25: 9.910424438e+12 | M25: 1.743425687e+14 | N25: 2.381872758e+14 | Q25: Normalizovanie rgb - to sa robi vzdy
A26: 500 | B26: 5e-07 | C26: 0.0049 | D26: 0.323 | E26: 0.272 | F26: 6.558483377e+14 | L26: 3.213656855e+12 | M26: 2.118390131e+14 | N26: 1.783907478e+14
A27: 505 | B27: 5.05e-07 | C27: 0.0024 | D27: 0.4073 | E27: 0.2123 | F27: 6.380958126e+14 | L27: 1.53142995e+12 | M27: 2.598964245e+14 | N27: 1.35467741e+14 | R27: max rgb | T27: normalizovane rgb | W27: RGB | Y27: Vysledna farba
A28: 510 | B28: 5.1e-07 | C28: 0.0093 | D28: 0.503 | E28: 0.1582 | F28: 620901521955813 | L28: 5.774384154e+12 | M28: 3.123134655e+14 | N28: 9.822662077e+13 | P28: =IF($R$20>0,T19,Z10) -> 0.2049547154 | Q28: / | S28: = | T28: =P28/$R$29 -> 0.5480261207 | W28: =T28*255 -> 139.7466608 | Y28: =myRGB(W28,W29,W30) -> 
A29: 515 | B29: 5.15e-07 | C29: 0.0291 | D29: 0.6082 | E29: 0.1117 | F29: 6.042466356e+14 | L29: 1.75835771e+13 | M29: 367502803768175 | N29: 6.74943492e+13 | P29: =IF($R$20>0,T20,Z11) -> 0.2161034402 | R29: =MAX(T19:T21) -> 0.3739871289 | T29: =P29/$R$29 -> 0.577836571 | W29: =T29*255 -> 147.3483256
A30: 520 | B30: 5.2e-07 | C30: 0.0633 | D30: 0.71 | E30: 0.0782 | F30: 5.881129204e+14 | L30: 3.722754786e+13 | M30: 4.175601735e+14 | N30: 4.599043038e+13 | P30: 0.5789418444 | T30: =P30/$R$29 -> 1.548026121 | W30: 394.7466608
A31: 525 | B31: 5.25e-07 | C31: 0.1096 | D31: 0.7932 | E31: 0.0573 | F31: 5.724827306e+14 | L31: 6.274410727e+13 | M31: 4.540933019e+14 | N31: 3.280326046e+13
A32: 530 | B32: 5.3e-07 | C32: 0.1655 | D32: 0.862 | E32: 0.0422 | F32: 5.573389959e+14 | L32: 9.223960383e+13 | M32: 4.804262145e+14 | N32: 2.351970563e+13
A33: 535 | B33: 5.35e-07 | C33: 0.2257 | D33: 0.9149 | E33: 0.0298 | F33: 5.426652105e+14 | L33: 1.22479538e+14 | M33: 4.964844011e+14 | N33: 1.617142327e+13
A34: 540 | B34: 5.4e-07 | C34: 0.2904 | D34: 0.954 | E34: 0.0203 | F34: 5.284454195e+14 | L34: 1.534605498e+14 | M34: 5.041369302e+14 | N34: 1.072744202e+13
A35: 545 | B35: 5.45e-07 | C35: 0.3597 | D35: 0.9803 | E35: 0.0134 | F35: 5.146642059e+14 | L35: 1.851247149e+14 | M35: 5.045253211e+14 | N35: 6.89650036e+12
A36: 550 | B36: 5.5e-07 | C36: 0.4334 | D36: 0.995 | E36: 0.0087 | F36: 5.013066771e+14 | L36: 2.172663138e+14 | M36: 4.988001437e+14 | N36: 4.361368091e+12
A37: 555 | B37: 5.55e-07 | C37: 0.5121 | D37: 1 | E37: 0.0057 | F37: 4.883584505e+14 | L37: 250088362497547 | M37: 4.883584505e+14 | N37: 2.783643168e+12
A38: 560 | B38: 5.6e-07 | C38: 0.5945 | D38: 0.995 | E38: 0.0039 | F38: 4.758056397e+14 | L38: 2.828664528e+14 | M38: 4.734266115e+14 | N38: 1.855641995e+12
A39: 565 | B39: 5.65e-07 | C39: 0.6784 | D39: 0.9786 | E39: 0.0027 | F39: 4.636348401e+14 | L39: 3.145298755e+14 | M39: 4.537130545e+14 | N39: 1.251814068e+12
A40: 570 | B40: 5.7e-07 | C40: 0.7621 | D40: 0.952 | E40: 0.0021 | F40: 4.518331145e+14 | L40: 3.443420165e+14 | M40: 4.30145125e+14 | N40: 9.488495404e+11
A41: 575 | B41: 5.75e-07 | C41: 0.8425 | D41: 0.9154 | E41: 0.0018 | F41: 4.403879788e+14 | L41: 3.710268722e+14 | M41: 4.031311558e+14 | N41: 7.926983619e+11
A42: 580 | B42: 5.8e-07 | C42: 0.9163 | D42: 0.87 | E42: 0.0017 | F42: 4.292873883e+14 | L42: 3.933560339e+14 | M42: 3.734800278e+14 | N42: 7.297885601e+11
A43: 585 | B43: 5.85e-07 | C43: 0.9786 | D43: 0.8163 | E43: 0.0014 | F43: 4.185197231e+14 | L43: 409563401044166 | M43: 3.4163765e+14 | N43: 5.859276124e+11
A44: 590 | B44: 5.9e-07 | C44: 1.0263 | D44: 0.757 | E44: 0.0011 | F44: 4.080737747e+14 | L44: 4.18806115e+14 | M44: 3.089118475e+14 | N44: 4.488811522e+11
A45: 595 | B45: 5.95e-07 | C45: 1.0567 | D45: 0.6949 | E45: 0.001 | F45: 3.979387323e+14 | L45: 4.205018584e+14 | M45: 2.765276251e+14 | N45: 3.979387323e+11
A46: 600 | B46: 6e-07 | C46: 1.0622 | D46: 0.631 | E46: 0.0008 | F46: 3.881041694e+14 | L46: 412244248720822 | M46: 2.448937309e+14 | N46: 3.104833355e+11
A47: 605 | B47: 6.05e-07 | C47: 1.0456 | D47: 0.5668 | E47: 0.0006 | F47: 3.785600309e+14 | L47: 3.958223683e+14 | M47: 2.145678255e+14 | N47: 2.271360185e+11
A48: 610 | B48: 6.1e-07 | C48: 1.0026 | D48: 0.503 | E48: 0.0003 | F48: 3.692966203e+14 | L48: 370256791530174 | M48: 1.857562e+14 | N48: 1.107889861e+11
A49: 615 | B49: 6.15e-07 | C49: 0.9384 | D49: 0.4412 | E49: 0.0002 | F49: 3.603045872e+14 | L49: 3.381098246e+14 | M49: 1.589663839e+14 | N49: 7.206091744e+10
A50: 620 | B50: 6.2e-07 | C50: 0.8544 | D50: 0.381 | E50: 0.0002 | F50: 3.515749151e+14 | L50: 3.003856075e+14 | M50: 1.339500427e+14 | N50: 7.031498303e+10
A51: 625 | B51: 6.25e-07 | C51: 0.7514 | D51: 0.321 | E51: 0.0001 | F51: 3.430989099e+14 | L51: 2.578045209e+14 | M51: 1.101347501e+14 | N51: 3.430989099e+10
A52: 630 | B52: 6.3e-07 | C52: 0.6424 | D52: 0.265 | E52: 0 | F52: 3.348681881e+14 | L52: 2.15119324e+14 | M52: 8.874006984e+13 | N52: 0
A53: 635 | B53: 6.35e-07 | C53: 0.5419 | D53: 0.217 | E53: 0 | F53: 3.268746657e+14 | L53: 1.771333813e+14 | M53: 7.093180246e+13 | N53: 0
A54: 640 | B54: 6.4e-07 | C54: 0.4479 | D54: 0.175 | E54: 0 | F54: 3.191105477e+14 | L54: 1.429296143e+14 | M54: 5.584434584e+13 | N54: 0
A55: 645 | B55: 6.45e-07 | C55: 0.3608 | D55: 0.1382 | E55: 0 | F55: 3.115683172e+14 | L55: 1.124138488e+14 | M55: 4.305874143e+13 | N55: 0
A56: 650 | B56: 6.5e-07 | C56: 0.2835 | D56: 0.107 | E56: 0 | F56: 3.042407256e+14 | L56: 8.62522457e+13 | M56: 3.255375764e+13 | N56: 0
A57: 655 | B57: 6.55e-07 | C57: 0.2187 | D57: 0.0816 | E57: 0 | F57: 2.971207827e+14 | L57: 6.498031518e+13 | M57: 2.424505587e+13 | N57: 0
A58: 660 | B58: 6.6e-07 | C58: 0.1649 | D58: 0.061 | E58: 0 | F58: 2.902017472e+14 | L58: 4.785426811e+13 | M58: 1.770230658e+13 | N58: 0
A59: 665 | B59: 6.65e-07 | C59: 0.1212 | D59: 0.0446 | E59: 0 | F59: 2.834771174e+14 | L59: 3.435742663e+13 | M59: 1.264307944e+13 | N59: 0
A60: 670 | B60: 6.7e-07 | C60: 0.0874 | D60: 0.032 | E60: 0 | F60: 2.769406227e+14 | L60: 2.420461042e+13 | M60: 8.862099926e+12 | N60: 0
A61: 675 | B61: 6.75e-07 | C61: 0.0636 | D61: 0.0232 | E61: 0 | F61: 2.705862146e+14 | L61: 1.720928325e+13 | M61: 6.277600178e+12 | N61: 0
A62: 680 | B62: 6.8e-07 | C62: 0.0468 | D62: 0.017 | E62: 0 | F62: 2.644080588e+14 | L62: 1.237429715e+13 | M62: 4.494937e+12 | N62: 0
A63: 685 | B63: 6.85e-07 | C63: 0.0329 | D63: 0.0119 | E63: 0 | F63: 2.584005273e+14 | L63: 8.501377348e+12 | M63: 3.074966275e+12 | N63: 0
A64: 690 | B64: 6.9e-07 | C64: 0.0227 | D64: 0.0082 | E64: 0 | F64: 2.525581903e+14 | L64: 5.733070921e+12 | M64: 2.070977161e+12 | N64: 0
A65: 695 | B65: 6.95e-07 | C65: 0.0158 | D65: 0.0057 | E65: 0 | F65: 2.468758094e+14 | L65: 3.900637789e+12 | M65: 1.407192114e+12 | N65: 0
A66: 700 | B66: 7e-07 | C66: 0.0114 | D66: 0.0041 | E66: 0 | F66: 2.413483299e+14 | L66: 2.751370961e+12 | M66: 9.895281528e+11 | N66: 0
A67: 705 | B67: =A67/(10^9) -> 7.05e-07 | C67: 0.0081 | D67: 0.0029 | E67: 0 | F67: =(2*$G$2*$H$2^2)/(B67^5)*1/(EXP($G$2*$H$2/(B67*$I$2*$J$2))-1) -> 2.359708745e+14 | L67: =C67*F67 -> 1.911364084e+12 | M67: 6.843155361e+11 | N67: =E67*$F67 -> 0
A68: 710 | B68: 7.1e-07 | C68: 0.0058 | D68: 0.0021 | E68: 0 | F68: 2.307387362e+14 | L68: 1.33828467e+12 | M68: =D68*$F68 -> 4.84551346e+11 | N68: 0
A69: 715 | B69: 7.15e-07 | C69: 0.0041 | D69: 0.0015 | E69: 0 | F69: 2.256473723e+14 | L69: 9.251542264e+11 | M69: 3.384710584e+11 | N69: 0
A70: 720 | B70: 7.2e-07 | C70: 0.0029 | D70: 0.001 | E70: 0 | F70: 2.206923981e+14 | L70: 6.400079545e+11 | M70: 2.206923981e+11 | N70: 0
A71: 725 | B71: 7.25e-07 | C71: 0.002 | D71: 0.0007 | E71: 0 | F71: 2.158695811e+14 | L71: 4.317391623e+11 | M71: 1.511087068e+11 | N71: 0
A72: 730 | B72: 7.3e-07 | C72: 0.0014 | D72: 0.0005 | E72: 0 | F72: 2.111748354e+14 | L72: 2.956447696e+11 | M72: 1.055874177e+11 | N72: 0
A73: 735 | B73: 7.35e-07 | C73: 0.001 | D73: 0.0004 | E73: 0 | F73: 2.06604216e+14 | L73: 2.06604216e+11 | M73: 8.264168639e+10 | N73: 0
A74: 740 | B74: 7.4e-07 | C74: 0.0007 | D74: 0.0002 | E74: 0 | F74: 2.021539137e+14 | L74: 1.415077396e+11 | M74: 4.043078275e+10 | N74: 0
A75: 745 | B75: 7.45e-07 | C75: 0.0005 | D75: 0.0002 | E75: 0 | F75: 1.978202503e+14 | L75: 9.891012517e+10 | M75: 3.956405007e+10 | N75: 0
A76: 750 | B76: 7.5e-07 | C76: 0.0003 | D76: 0.0001 | E76: 0 | F76: 1.935996734e+14 | L76: 5.807990201e+10 | M76: 1.935996734e+10 | N76: 0
A77: 755 | B77: 7.55e-07 | C77: 0.0002 | D77: 0.0001 | E77: 0 | F77: 1.894887516e+14 | L77: 3.789775033e+10 | M77: 1.894887516e+10 | N77: 0
A78: 760 | B78: 7.6e-07 | C78: 0.0002 | D78: 0.0001 | E78: 0 | F78: 1.854841708e+14 | L78: 3.709683416e+10 | M78: 1.854841708e+10 | N78: 0
A79: 765 | B79: 7.65e-07 | C79: 0.0001 | D79: 0 | E79: 0 | F79: 1.81582729e+14 | L79: 1.81582729e+10 | M79: 0 | N79: 0
A80: 770 | B80: 7.7e-07 | C80: 0.0001 | D80: 0 | E80: 0 | F80: 1.777813325e+14 | L80: 1.777813325e+10 | M80: 0 | N80: 0
A81: 775 | B81: 7.75e-07 | C81: 0.0001 | D81: 0 | E81: 0 | F81: 1.740769921e+14 | L81: 1.740769921e+10 | M81: 0 | N81: 0
A82: 780 | B82: 7.8e-07 | C82: 0 | D82: 0 | E82: 0 | F82: 1.704668192e+14 | L82: 0 | M82: 0 | N82: 0
